bitfinex/quotes_ETHUSD_20250523
["timestamp","ask_amount","ask_price","bid_price","bid_amount"]
[1747990587695,7.70111889,2666.9,2666.8,41.899]
[1747990587926,8.48123078,2666.9,2666.8,30.609]
[1747990588225,8.58123078,2666.9,2666.8,41.838]
[1747990593340,8.58123078,2666.9,2666.8,16.17]
[1747990593517,8.58123078,2666.9,2666.8,41.839]
[1747990595248,7.80111889,2666.9,2666.8,41.839]
[1747990595447,7.80111889,2666.9,2666.8,41.84]
[1747990597968,7.80111889,2666.9,2666.8,30.61]
[1747990598172,7.80111889,2666.9,2666.8,41.84]
[1747990605547,5.72221889,2666.9,2666.8,41.84]
[1747990605752,10.08,2667.7,2666.8,41.84]
[1747990605753,0.1,2667.3,2666.8,41.84]
[1747990606159,0.1,2667.3,2666.9,14.5]
[1747990606669,0.55,2667.2,2666.9,14.5]
[1747990607539,0.1,2667.3,2666.9,14.5]
[1747990608061,0.55,2667.2,2666.9,14.5]
[1747990609562,0.65,2667.1,2667.0,14.441]
[1747990609723,6.27221889,2667.1,2667.0,14.441]
[1747990610549,6.27221889,2667.1,2667.0,28.941]
[1747990610727,6.27221889,2667.1,2667.0,40.171]
[1747990611253,5.72221889,2667.1,2667.0,40.171]
[1747990612264,6.27221889,2667.1,2667.0,14.5]
[1747990612567,6.27221889,2667.1,2667.0,40.17]
[1747990614132,6.27221889,2667.1,2667.0,14.5]
[1747990614449,6.27221889,2667.1,2667.0,40.17]
[1747990614847,6.27221889,2667.1,2667.0,25.67]
[1747990615042,5.72221889,2667.1,2667.0,25.67]
[1747990615974,5.72221889,2667.1,2667.0,40.17]
[1747990616748,5.62221889,2667.1,2667.0,40.17]
[1747990623285,5.62221889,2667.1,2667.0,25.67]
[1747990623682,2.1006,2667.0,2666.8,16.17]
[1747990623864,2.1006,2667.0,2666.9,25.657]
[1747990624898,0.55,2667.0,2666.9,25.657]
[1747990625671,6.17221889,2667.0,2666.9,25.657]
[1747990626903,6.17221889,2667.0,2666.9,14.428]
[1747990627061,6.17221889,2667.0,2666.9,25.657]
[1747990627561,7.84811889,2667.0,2666.9,25.657]
[1747990627756,0.65,2666.7,2666.6,1.10718115]
[1747990627962,2.2259,2666.7,2666.6,42.93518115]
[1747990628592,2.2259,2666.7,2666.6,41.828]
[1747990629504,0.65,2666.7,2666.6,41.828]
[1747990629675,1.5571,2666.9,2666.6,41.828]
[1747990629995,0.55,2666.8,2666.6,41.828]
[1747990630203,0.65,2666.9,2666.6,41.828]
[1747990630564,0.1,2666.7,2666.6,41.828]
[1747990630788,0.65,2666.9,2666.6,41.828]
[1747990631009,0.1,2666.7,2666.6,41.828]
[1747990632164,0.1,2666.7,2665.9,0.2891256]
[1747990632398,0.55,2666.6,2665.9,0.2891256]
[1747990633183,0.55,2666.6,2666.0,14.5]
[1747990633408,0.55,2666.6,2666.1,11.23]
[1747990634001,0.55,2666.6,2666.2,14.5]
[1747990634201,5.72221889,2666.7,2666.2,14.5]
[1747990634409,5.62221889,2666.7,2666.2,14.5]
[1747990635010,5.72221889,2666.7,2666.2,14.5]
[1747990636278,5.72221889,2666.7,2666.3,30.602]
[1747990637713,5.62221889,2666.7,2666.3,30.602]
[1747990638289,5.72221889,2666.7,2666.3,30.602]
[1747990640871,5.62221889,2666.7,2666.3,30.602]
[1747990641284,5.72221889,2666.7,2666.3,30.602]
[1747990641491,5.62221889,2666.7,2666.3,30.602]
[1747990641976,2.1286,2666.6,2666.3,16.172]
[1747990642182,2.1286,2666.6,2666.4,25.66]
[1747990642377,0.65,2666.5,2666.4,25.66]
[1747990643278,6.27221889,2666.5,2666.4,25.66]
[1747990644506,5.62221889,2666.5,2666.4,25.66]
[1747990644712,5.72221889,2666.5,2666.4,14.431]
[1747990645608,0.55,2666.4,2666.2,1.4605423]
[1747990645801,0.55,2666.4,2665.4,0.3741]
[1747990646015,0.55,2666.4,2665.6,0.3741]
[1747990646181,0.55,2666.4,2665.7,16.5461]
[1747990647197,2.1656,2666.4,2665.7,16.5461]
[1747990648082,2.1656,2666.4,2665.8,25.662]
[1747990649284,7.78781889,2666.4,2665.8,25.662]
[1747990651041,7.78781889,2666.4,2665.7,16.172]
[1747990651323,0.55,2666.2,2665.8,25.648]
[1747990652490,1.5141,2666.1,2665.9,30.59]
[1747990652689,1.5141,2666.1,2666.0,41.821]
[1747990652690,2.1641,2666.1,2666.0,41.821]
[1747990653612,2.1641,2666.1,2666.0,41.822]
[1747990654087,2.1641,2666.1,2666.0,30.59]
[1747990654292,2.0111,2666.1,2666.0,41.822]
[1747990655546,2.0111,2666.1,2666.0,30.59]
[1747990655753,7.83442889,2666.1,2666.0,16.173]
[1747990656050,7.83442889,2666.1,2666.0,30.591]
[1747990656234,7.83442889,2666.1,2666.0,41.823]
[1747990657148,7.70162889,2666.1,2666.0,41.823]
[1747990658548,7.70162889,2666.1,2666.0,30.591]
[1747990658758,7.70162889,2666.1,2666.0,41.823]
[1747990659928,7.70162889,2666.1,2666.0,16.173]
[1747990660258,8.13822889,2666.1,2666.0,25.653]
[1747990662459,0.55,2665.6,2665.0,1.10693164]
[1747990662665,0.1,2665.3,2665.1,25.654]
[1747990663163,0.1,2665.3,2665.2,11.234]
[1747990666266,0.1,2665.3,2665.2,27.412]
[1747990666462,2.1569,2665.3,2665.2,16.178]
[1747990666654,0.65,2665.3,2665.2,41.835]
[1747990669674,0.55,2665.4,2665.2,41.835]
[1747990670081,0.1,2665.3,2665.2,41.835]
[1747990670779,0.1,2665.5,2665.2,41.835]
[1747990671075,0.1,2665.6,2665.3,0.2858]
[1747990671376,0.1,2665.8,2665.3,0.2858]
[1747990672135,2.0507,2666.0,2665.3,0.2858]
[1747990672136,0.1,2665.6,2665.3,0.2858]
[1747990672335,0.1,2665.6,2665.4,14.5]
[1747990672740,0.1,2665.4,2665.2,16.178]
[1747990672941,0.1,2665.4,2577.7,0.25]
[1747990672942,0.1,2665.4,2663.9,0.60610968]
[1747990673264,0.1,2665.4,2664.4,14.5]
[1747990673655,0.1,2665.4,2664.5,0.3741]
[1747990674066,0.1,2665.4,2664.6,11.6091]
[1747990675843,0.55,2665.3,2664.5,0.3741]
[1747990676045,0.55,2665.3,2664.6,11.235]
[1747990676246,0.55,2665.3,2664.7,30.602]
[1747990678686,6.17221889,2665.3,2664.7,30.602]
[1747990679670,6.17221889,2665.3,2664.8,14.5]
[1747990680378,5.62221889,2665.3,2664.8,14.5]
[1747990682281,5.62221889,2665.3,2665.1,1.48154059]
[1747990682481,0.1,2665.5,2665.2,14.407]
[1747990682887,1.6468,2665.7,2665.3,14.5]
[1747990684287,5.62221889,2666.4,2665.4,25.643]
[1747990684288,2.2101,2665.5,2665.4,25.643]
[1747990684464,0.1,2665.3,2665.1,1.48154059]
[1747990684792,0.1,2665.3,2665.2,25.643]
[1747990685002,0.1,2665.3,2665.2,40.143]
[1747990685197,0.1,2665.3,2665.2,28.907]
[1747990685401,0.1,2665.3,2665.2,40.143]
[1747990686889,2.2101,2665.5,2665.2,40.143]
[1747990687297,0.1,2665.5,2665.2,40.143]
[1747990687781,0.1,2665.3,2665.2,40.143]
[1747990688410,0.1,2665.3,2665.2,14.5]
[1747990688708,0.1,2665.3,2665.2,40.143]
[1747990689715,0.1,2665.5,2665.2,40.143]
[1747990690003,1.6291,2665.7,2665.2,40.143]
[1747990690193,0.1,2665.6,2665.2,40.143]
[1747990691972,0.1,2665.3,2665.2,40.143]
[1747990692175,0.1,2665.6,2665.2,40.143]
[1747990692386,1.6291,2665.7,2665.2,40.143]
[1747990692592,0.1,2665.6,2665.2,40.143]
[1747990693411,5.72221889,2665.6,2665.2,40.143]
[1747990693766,0.1,2665.3,2665.2,40.143]
[1747990694000,5.62221889,2665.6,2665.2,40.143]
[1747990694186,0.1,2665.3,2665.2,40.143]
[1747990694386,0.1,2665.3,2665.2,14.5]
[1747990694587,0.1,2665.3,2665.2,40.143]
[1747990695313,0.1,2665.5,2665.2,40.143]
[1747990695467,0.1,2665.3,2665.2,40.143]
[1747990697111,0.1,2665.3,2665.2,28.907]
[1747990697289,0.1,2665.3,2665.2,40.143]
[1747990698649,0.1,2665.3,2665.2,28.907]
[1747990698799,0.1,2665.5,2665.2,40.143]
[1747990699006,0.1,2665.3,2665.2,40.143]
[1747990701013,0.1,2665.3,2665.2,25.643]
[1747990701520,0.1,2665.3,2665.2,40.143]
[1747990704929,0.1,2665.3,2665.2,28.907]
[1747990705240,0.1,2665.3,2665.2,40.143]
[1747990705393,2.2424,2665.3,2665.2,14.5]
[1747990705594,2.2424,2665.3,2665.2,25.643]
[1747990706493,2.2424,2665.3,2665.2,14.407]
[1747990706922,0.55,2665.2,2664.7,16.179]
[1747990707119,0.55,2665.2,2664.8,14.407]
[1747990707533,0.55,2665.2,2664.9,14.5]
[1747990707740,0.55,2665.2,2665.0,11.236]
[1747990708102,0.1,2665.3,2665.0,11.236]
[1747990708417,0.1,2665.3,2665.1,14.5]
[1747990710401,0.1,2665.3,2665.2,16.18]
[1747990711105,6.27221889,2665.3,2665.2,16.18]
[1747990711998,6.27221889,2665.3,2665.2,30.68]
[1747990712599,6.27221889,2665.3,2665.2,31.0541]
[1747990712807,6.27221889,2665.3,2665.2,56.305]
[1747990713005,6.27221889,2665.3,2665.2,41.805]
[1747990713736,8.44094078,2665.3,2665.2,41.805]
[1747990714296,7.81371889,2665.3,2665.2,41.805]
[1747990714524,7.81371889,2665.3,2665.2,16.18]
[1747990715003,7.81371889,2665.3,2665.2,41.805]
[1747990717745,7.81371889,2665.3,2665.2,30.569]
[1747990717945,7.81371889,2665.3,2665.2,41.805]
[1747990718106,8.59509078,2665.3,2665.2,41.805]
[1747990719145,8.59509078,2665.3,2665.2,30.569]
[1747990719441,8.59509078,2665.3,2665.2,41.805]
[1747990719648,7.81371889,2665.3,2665.2,41.805]
[1747990722748,7.81371889,2665.3,2665.2,30.569]
[1747990722956,7.81371889,2665.3,2665.2,41.806]
[1747990723545,7.81371889,2665.3,2665.2,30.569]
[1747990723861,7.81371889,2665.3,2665.2,41.806]
[1747990724041,8.59509078,2665.3,2665.2,30.57]
[1747990724215,8.59509078,2665.3,2665.2,41.807]
[1747990724418,8.59509078,2665.3,2665.2,30.57]
[1747990724828,8.59509078,2665.3,2665.2,41.807]
[1747990725229,0.55,2664.9,2664.7,1.48534152]
[1747990725454,0.55,2664.9,2664.8,14.39]
[1747990725659,0.85524,2664.9,2664.8,14.39]
[1747990726220,0.85524,2664.9,2664.8,30.574]
[1747990726516,0.85524,2664.9,2664.8,41.812]
[1747990727859,0.85524,2664.9,2664.8,41.862]
[1747990728748,6.47745889,2664.9,2664.8,41.862]
[1747990730277,6.47745889,2664.9,2664.8,30.624]
[1747990730481,6.47745889,2664.9,2664.8,41.862]
[1747990735748,6.27221889,2664.9,2664.8,41.862]
[1747990735949,5.62221889,2664.9,2664.8,41.862]
[1747990736348,6.17221889,2664.9,2664.8,41.862]
[1747990736562,6.27221889,2664.9,2664.8,41.862]
[1747990741523,6.27221889,2664.9,2664.8,14.392]
[1747990741813,5.72221889,2664.9,2664.8,14.392]
[1747990742010,6.27221889,2664.9,2664.8,14.392]
[1747990742810,5.72221889,2664.9,2664.8,25.631]
[1747990743378,1.6452,2665.5,2664.8,25.631]
[1747990743611,3.74983704,2666.8,2664.8,25.631]
[1747990743810,0.1,2664.9,2664.8,25.631]
[1747990744016,0.1,2664.9,2664.8,40.131]
[1747990744979,0.1,2664.9,2664.8,14.5]
[1747990745200,0.65,2664.9,2664.8,40.109]
[1747990745496,0.65,2664.9,2664.8,25.609]
[1747990746300,0.65,2664.9,2664.8,41.792]
[1747990748952,0.65,2664.9,2664.8,14.37]
[1747990749663,0.65,2664.9,2664.0,0.3741]
[1747990749865,0.65,2664.9,2664.1,28.87]
[1747990750059,0.65,2664.9,2664.2,11.238]
[1747990750964,0.65,2664.9,2664.3,0.01878581]
[1747990751460,0.1,2664.9,2664.2,11.238]
[1747990753368,0.1,2664.8,2664.2,11.238]
[1747990753744,0.1,2665.0,2664.2,11.238]
[1747990753949,0.1,2664.8,2664.2,11.238]
[1747990754775,0.1,2665.0,2664.2,11.238]
[1747990756299,0.1,2665.0,2664.3,16.183]
[1747990756652,0.55,2665.3,2664.3,16.183]
[1747990757078,0.1,2665.2,2664.3,16.183]
[1747990757294,0.1,2665.0,2664.3,16.183]
[1747990759909,0.1,2665.0,2664.6,1.48558617]
[1747990760061,0.1,2665.0,2664.7,14.37]
[1747990762605,0.1,2665.0,2664.8,16.182]
[1747990766393,0.1,2665.2,2664.8,16.182]
[1747990768006,0.1,2665.5,2664.8,16.182]
[1747990768303,0.1,2665.5,2664.9,1.48558617]
[1747990770407,0.1,2665.5,2665.0,0.5]
[1747990770909,1.5102,2665.3,2665.1,25.605]
[1747990771203,0.55,2665.2,2665.1,25.605]
[1747990771590,0.55,2665.2,2665.0,0.5]
[1747990771798,0.65,2665.2,2665.1,14.347]
[1747990772002,0.65,2665.2,2665.1,25.584]
[1747990773011,6.27221889,2665.2,2665.1,25.584]
[1747990776815,6.27221889,2665.2,2665.0,0.5]
[1747990777004,6.27221889,2665.2,2665.1,14.347]
[1747990778215,5.72221889,2665.2,2665.1,25.584]
[1747990778880,5.62221889,2665.2,2665.1,25.584]
[1747990779168,5.72221889,2665.2,2665.1,25.584]
[1747990781669,5.72221889,2665.2,2665.1,14.347]
[1747990781970,5.72221889,2665.2,2665.1,25.584]
[1747990782606,5.72221889,2665.2,2664.1,0.63683096]
[1747990783090,5.62507517,2665.2,2664.1,0.63683096]
[1747990783677,5.62507517,2665.2,2664.2,11.237]
[1747990785054,5.62507517,2665.2,2663.9,0.375]
[1747990785385,5.62507517,2665.2,2664.3,11.237]
[1747990785792,5.52507517,2665.2,2664.4,0.01877432]
[1747990785952,5.5280314,2665.2,2664.4,0.01877432]
[1747990786158,5.4280314,2665.2,2664.4,0.01877432]
[1747990786467,5.4280314,2665.2,2664.5,30.528]
[1747990786665,0.1,2665.4,2664.5,30.528]
[1747990787579,0.1,2665.4,2665.1,1.48715346]
[1747990787775,0.1,2665.4,2665.2,14.347]
[1747990787981,7.1080314,2665.6,2665.2,14.347]
[1747990789187,7.1080314,2665.6,2665.1,1.48715346]
[1747990789188,0.1,2665.2,2665.1,1.48715346]
[1747990789382,1.6042,2665.2,2665.1,27.06915346]
[1747990789679,2.1542,2665.2,2665.1,1.48715346]
[1747990789838,7.5822314,2665.2,2665.1,27.06915346]
[1747990790958,7.5822314,2665.2,2665.1,25.582]
[1747990791257,9.34845454,2665.2,2665.1,25.582]
[1747990793391,7.0322314,2665.2,2665.1,25.582]
[1747990793784,5.4280314,2665.2,2665.1,25.582]
[1747990793985,0.1,2665.4,2665.1,25.582]
[1747990795048,0.1,2665.4,2665.2,14.5]
[1747990795780,1.6075,2665.6,2665.2,14.5]
[1747990795781,1.7075,2665.6,2665.2,14.5]
[1747990797792,0.1,2665.6,2665.2,14.5]
[1747990798567,0.1,2665.6,2665.2,15.98715346]
[1747990800884,0.1,2665.6,2665.3,16.179]
[1747990801501,0.1,2665.6,2665.4,14.5]
[1747990802353,7.0621314,2665.8,2665.4,14.5]
[1747990802551,0.1,2665.7,2665.4,14.5]
[1747990802953,6.9621314,2665.8,2665.4,14.5]
[1747990803497,0.1,2665.7,2665.4,14.5]
[1747990803708,5.5280314,2665.8,2665.5,0.01875703]
[1747990803911,5.5280314,2665.8,2665.6,14.323]
[1747990804393,5.5280314,2665.8,2665.7,14.5]
[1747990804581,0.1,2665.8,2665.7,14.5]
[1747990807720,0.1,2666.0,2665.7,14.5]
[1747990808416,6.9471314,2666.2,2665.7,14.5]
[1747990808591,0.1,2666.1,2665.7,14.5]
[1747990808950,0.1,2665.8,2665.7,14.5]
[1747990809226,1.6358,2665.7,2665.4,1.48715346]
[1747990809381,1.6358,2665.7,2665.5,25.558]
[1747990809580,1.6358,2665.7,2665.5,40.058]
[1747990809780,0.1,2665.8,2665.5,40.058]
[1747990810392,0.1,2665.8,2665.5,25.558]
[1747990811716,0.65,2665.5,2665.4,1.48715346]
[1747990811883,0.65,2665.5,2665.4,25.557]
[1747990813533,2.1681,2665.4,2665.3,16.179]
[1747990813733,2.1681,2665.4,2665.3,41.736]
[1747990817139,2.1681,2665.4,2665.3,14.323]
[1747990817446,2.1681,2665.4,2665.2,26.64968272]
[1747990817605,2.1681,2665.4,2665.3,14.323]
[1747990818332,2.1681,2665.4,2665.3,25.558]
[1747990818531,0.1,2665.3,2665.2,26.64968272]
[1747990818703,2.2255,2665.3,2665.2,40.97268272]
[1747990819229,2.2255,2665.3,2665.2,52.20868272]
[1747990819402,2.2255,2665.3,2665.2,40.97268272]
[1747990819850,2.2255,2665.3,2665.2,52.20868272]
[1747990820027,2.470731,2665.3,2665.2,52.20868272]
[1747990821139,2.470731,2665.3,2665.2,40.97268272]
[1747990821345,2.470731,2665.3,2665.2,52.20868272]
[1747990822904,2.470731,2665.3,2665.2,51.83328272]
[1747990823106,17.9787624,2665.3,2665.2,51.83328272]
[1747990823715,17.9787624,2665.3,2665.2,40.59728272]
[1747990823911,17.9787624,2665.3,2665.2,51.83328272]
[1747990825847,17.7335314,2665.3,2665.2,51.83328272]
[1747990826046,15.6080314,2665.3,2665.2,51.83328272]
[1747990826347,16.1580314,2665.3,2665.2,68.01528272]
[1747990827412,16.1580314,2665.3,2665.2,68.01828272]
[1747990828411,15.6080314,2665.3,2665.2,68.01828272]
[1747990828965,5.5280314,2665.3,2665.2,68.01828272]
[1747990829249,5.5280314,2665.3,2665.2,58.53966917]
[1747990833958,5.5280314,2665.3,2665.2,47.30266917]
[1747990834182,5.5280314,2665.3,2665.2,58.53966917]
[1747990837441,5.5280314,2665.3,2665.2,47.30266917]
[1747990837661,5.5280314,2665.3,2665.2,58.53966917]
[1747990837880,6.0780314,2665.3,2665.2,32.97766917]
[1747990838113,8.46322488,2665.3,2665.2,58.51666917]
[1747990838242,18.49632454,2665.3,2665.2,47.27966917]
[1747990838441,18.49632454,2665.3,2665.2,58.51666917]
[1747990838642,18.49632454,2665.3,2665.2,32.97666917]
[1747990838885,18.49632454,2665.3,2665.2,58.51566917]
[1747990839262,18.49444908,2665.3,2665.2,58.51566917]
[1747990840573,18.49444908,2665.3,2665.2,47.27866917]
[1747990840764,18.49444908,2665.3,2665.2,58.51566917]
[1747990844192,18.49444908,2665.3,2665.2,47.27866917]
[1747990844350,18.49444908,2665.3,2665.2,58.51666917]
[1747990845749,15.60615594,2665.3,2665.2,58.51666917]
[1747990846190,15.60615594,2665.3,2665.2,58.14166917]
[1747990846391,16.15615594,2665.3,2665.2,58.14166917]
[1747990849573,6.07615594,2665.3,2665.2,58.14166917]
[1747990851281,6.07615594,2665.3,2665.2,32.60166917]
[1747990851483,6.68377153,2665.3,2665.2,58.14366917]
[1747990851681,6.68377153,2665.3,2665.2,32.60166917]
[1747990851884,6.07615594,2665.3,2665.2,58.14366917]
[1747990852105,6.07615594,2665.3,2665.2,32.60166917]
[1747990852407,6.07615594,2665.3,2665.2,58.14366917]
[1747990852810,7.72655594,2665.3,2665.2,58.14366917]
[1747990853007,8.49921153,2665.3,2665.2,46.90566917]
[1747990853187,8.49921153,2665.3,2665.2,58.14366917]
[1747990854123,8.49921153,2665.3,2665.2,46.90566917]
[1747990854331,8.49921153,2665.3,2665.2,58.14366917]
[1747990854641,8.49921153,2665.3,2665.2,58.15064936]
[1747990855499,18.57921153,2665.3,2665.2,58.15064936]
[1747990855701,18.57921153,2665.3,2665.2,46.91264936]
[1747990855904,18.57921153,2665.3,2665.2,58.15064936]
[1747990857326,18.57921153,2665.3,2665.2,58.14366917]
[1747990858417,18.57921153,2665.3,2665.2,58.14466917]
[1747990859101,18.57921153,2665.3,2665.2,46.90666917]
[1747990859308,18.57358354,2665.3,2665.2,58.14566917]
[1747990859733,18.57358354,2665.3,2665.2,46.90666917]
[1747990859938,18.57358354,2665.3,2665.2,58.14566917]
[1747990860932,18.57358354,2665.3,2665.2,46.90666917]
[1747990861139,18.57358354,2665.3,2665.2,58.14566917]
[1747990861430,18.57358354,2665.3,2665.2,46.90666917]
[1747990861648,18.57358354,2665.3,2665.2,57.77066917]
[1747990863455,0.64812454,2663.0,2662.3,4.68022957]
[1747990863656,0.64812454,2662.7,2662.3,4.68022957]
[1747990863863,0.64812454,2662.7,2662.6,34.60698652]
[1747990864033,0.64812454,2662.7,2662.6,46.35998652]
[1747990865048,0.64812454,2662.7,2662.6,20.31898652]
[1747990865249,2.15952454,2662.7,2662.6,46.35998652]
[1747990865454,2.37547699,2662.7,2662.6,46.35998652]
[1747990865648,2.37547699,2662.7,2662.6,20.31898652]
[1747990865918,2.37547699,2662.7,2662.6,46.35998652]
[1747990866231,2.15952454,2662.7,2662.6,46.35998652]
[1747990866432,2.15952454,2662.7,2662.6,42.226]
[1747990866760,2.15952454,2662.7,2662.6,42.229]
[1747990867145,0.09812454,2662.7,2662.6,42.229]
[1747990870426,0.09812454,2662.7,2662.6,31.001]
[1747990871259,6.07052795,2662.7,2662.6,31.001]
[1747990871462,6.67758075,2662.7,2662.6,31.001]
[1747990871646,1.25517734,2662.7,2662.6,16.193]
[1747990871852,0.64812454,2662.7,2662.6,42.246]
[1747990873562,0.64812454,2662.7,2662.6,31.0037119]
[1747990873765,0.64812454,2662.7,2662.6,42.2507119]
[1747990876494,0.64812454,2662.7,2662.6,16.1957119]
[1747990876723,2.26372454,2662.7,2662.6,42.2557119]
[1747990876922,2.49009699,2662.7,2662.6,42.2557119]
[1747990877803,2.49009699,2662.7,2662.6,42.26148098]
[1747990879308,15.60052795,2662.7,2662.6,42.26148098]
[1747990880511,5.52052795,2662.7,2662.6,42.26148098]
[1747990880714,0.09812454,2662.7,2662.6,42.2557119]
[1747990881310,0.09812454,2662.7,2662.6,56.7557119]
[1747990881513,0.09812454,2662.7,2662.6,14.813]
[1747990881683,0.09812454,2663.1,2662.6,14.813]
[1747990882014,0.09812454,2663.1,2662.7,0.7302911]
[1747990882417,0.09812454,2663.1,2662.8,14.5]
[1747990882575,0.09812454,2663.1,2662.9,11.249]
[1747990883514,0.09812454,2663.1,2663.0,14.5]
[1747990886335,0.09812454,2663.1,2663.0,30.697]
[1747990886539,0.09812454,2663.1,2663.0,56.756]
[1747990886919,0.64812454,2663.1,2663.0,31.008]
[1747990887120,0.64812454,2663.1,2663.0,42.26176822]
[1747990887945,6.07052795,2663.1,2663.0,42.26176822]
[1747990889059,6.07052795,2663.1,2663.0,31.01376822]
[1747990889265,6.07052795,2663.1,2663.0,42.26076822]
[1747990889759,6.07052795,2663.1,2663.0,42.255]
[1747990890264,6.07052795,2663.1,2663.0,16.197]
[1747990890559,6.07052795,2663.1,2663.0,42.255]
[1747990893434,5.52052795,2663.1,2663.0,42.255]
[1747990893848,5.42240341,2663.1,2663.0,42.255]
[1747990894235,0.09812454,2663.3,2663.0,42.255]
[1747990894442,0.09812454,2663.5,2663.0,42.255]
[1747990895179,0.09812454,2663.5,2663.1,0.00407014]
[1747990895549,0.09812454,2663.5,2663.1,14.50407014]
[1747990897960,0.09812454,2663.5,2663.1,14.5]
[1747990898682,0.55,2663.4,2662.5,0.35629039]
[1747990898890,0.55,2663.4,2662.4,1.46929464]
[1747990898891,0.55,2662.5,2662.4,17.66329464]
[1747990899030,0.55,2662.5,2662.4,43.58829464]
[1747990899907,0.55,2662.5,2662.4,42.119]
[1747990901911,0.55,2662.5,2662.4,42.117]
[1747990902812,0.55,2662.5,2662.4,42.12135317]
[1747990904415,0.55,2662.5,2662.4,42.12235317]
[1747990904579,1.31783786,2662.5,2662.4,42.12235317]
[1747990904779,1.31783786,2662.5,2662.4,42.12435317]
[1747990905317,0.55,2662.5,2662.4,42.12435317]
[1747990905523,0.55,2662.5,2662.4,42.12]
[1747990906826,0.09812454,2662.1,2661.4,1.36913312]
[1747990907032,0.09812454,2662.1,2661.5,14.681]
[1747990907231,0.09812454,2662.1,2661.6,1.60501331]
[1747990907843,0.09812454,2662.1,2661.7,29.181]
[1747990907990,0.09812454,2662.1,2661.8,25.928]
[1747990908701,0.09812454,2662.1,2661.8,14.681]
[1747990908930,0.09812454,2662.1,2661.9,11.248]
[1747990911232,0.09812454,2662.1,2661.6,1.60501331]
[1747990911391,0.64812454,2662.1,2662.0,14.682]
[1747990911592,0.09812454,2661.8,2661.7,11.248]
[1747990911910,0.09812454,2661.8,2661.7,25.93]
[1747990913005,0.09812454,2661.8,2661.7,25.931]
[1747990913530,0.09812454,2661.8,2661.7,25.93677103]
[1747990914542,0.64812454,2661.8,2661.7,25.93877103]
[1747990915435,0.09812454,2661.8,2661.7,25.93877103]
[1747990915731,5.42240341,2662.1,2661.7,25.93877103]
[1747990915932,5.42240341,2662.1,2661.7,25.933]
[1747990916299,5.42240341,2662.1,2661.8,16.199]
[1747990918609,5.42240341,2662.4,2661.8,16.199]
[1747990918836,0.09812454,2662.2,2661.8,16.199]
[1747990919137,0.09812454,2662.2,2661.9,25.933]
[1747990919652,0.55,2662.1,2661.9,14.684]
[1747990919940,0.09812454,2662.0,2661.8,16.199]
[1747990920142,0.64812454,2662.0,2661.9,25.933]
[1747990923339,6.07052795,2662.0,2661.9,25.933]
[1747990924411,5.52052795,2662.0,2661.9,25.933]
[1747990924648,0.09812454,2661.8,2660.4,1.16015028]
[1747990924812,0.09812454,2661.8,2660.8,0.37400071]
[1747990925011,0.09812454,2662.0,2660.9,0.27100371]
[1747990925248,0.09812454,2662.0,2661.0,14.834]
[1747990925409,0.09812454,2662.0,2661.1,1.54790044]
[1747990925812,0.09812454,2662.0,2661.2,11.25]
[1747990926350,0.09812454,2662.0,2661.3,16.2]
[1747990928938,0.09812454,2662.0,2661.4,26.084]
[1747990930056,0.09812454,2662.0,2661.5,26.084]
[1747990930544,0.09812454,2661.8,2661.5,26.084]
[1747990930746,0.09812454,2661.8,2661.5,26.72569112]
[1747990931422,0.09812454,2661.6,2661.5,0.64169112]
[1747990931767,0.09812454,2661.6,2661.5,26.084]
[1747990934549,0.09812454,2661.6,2661.3,16.2]
[1747990934848,0.09812454,2661.6,2661.4,26.085]
[1747990935746,0.09812454,2661.6,2661.5,0.00577147]
[1747990935925,0.09812454,2661.6,2661.5,11.25677147]
[1747990938570,0.09812454,2661.6,2661.5,11.251]
[1747990940758,0.09812454,2661.6,2661.4,14.835]
[1747990940913,0.09812454,2661.6,2661.5,11.251]
[1747990941116,0.09812454,2661.6,2661.5,25.751]
[1747990944618,0.09812454,2661.9,2661.5,25.751]
[1747990945032,1.5125,2662.4,2661.5,25.751]
[1747990945033,0.09812454,2661.7,2661.5,25.751]
[1747990947423,0.09812454,2661.7,2661.6,0.00577125]
[1747990948169,0.09812454,2661.7,2661.6,14.50577125]
[1747990950367,0.09812454,2661.7,2661.6,14.5]
[1747990950575,0.09812454,2661.7,2661.6,30.702]
[1747990951580,0.09812454,2661.7,2661.6,41.953]
[1747990954192,0.09812454,2661.7,2661.6,41.95670755]
[1747990954398,0.09812454,2662.0,2661.6,41.95670755]
[1747990955977,5.52052795,2662.3,2661.6,41.95670755]
[1747990957069,5.52052795,2662.3,2661.6,41.953]
[1747990957843,5.42240341,2662.3,2661.6,41.953]
[1747990958043,5.52052795,2662.3,2661.6,41.953]
[1747990959384,5.52052795,2662.3,2661.9,1.48784835]
[1747990959605,5.52052795,2662.3,2662.0,14.599]
[1747990959968,5.52052795,2662.3,2662.1,14.5]
[1747990960365,0.09812454,2663.0,2662.2,0.01887634]
[1747990960594,1.61682454,2662.7,2662.2,0.48722441]
[1747990960793,0.09812454,2662.4,2662.3,25.849]
[1747990960978,0.09812454,2662.4,2662.3,40.349]
[1747990963234,0.09812454,2662.4,2662.3,29.099]
[1747990963383,0.09812454,2662.6,2662.3,40.348]
[1747990963587,0.09812454,2662.4,2662.3,40.348]